Cogmind - Beta 13 @@@ ROGUE MODE // 2024.04.22 @ 21:40:08 Player: puppuppit Result: Destroyed by H-77 Assassin with Coil Gun Performance ------------- Evolutions (6) 3000 Regions Visited (24) 4800 Robots Destroyed (252) 1260 Value Destroyed (14093) 14093 Prototype IDs (54) 1080 Alien Tech Used (0) 0 Bonus (7867) 7867 TOTAL SCORE: 32100 Bonus ------- Triggered High Security 500 High Alert Combat Kills 3641 Follower Combat Kills 2639 Entered Garrisons 1000 Aligned with FarCom 300 Met Imprinter 300 Acquired ECA 300 Friendly Fire -813 Cogmind --------- Core Integrity 0/1150 Matter 263/300 Energy 81/100 System Corruption 3% Temperature Cool (0) Movement Core (200) Ox3 Location -4/Garrison Parts ------- > --- POWER (2) -------- (None) > --- PROPULSION (6) --- (None) > --- UTILITY (9) ------ Advanced Target Analyzer Improved Hacking Suite Advanced Hacking Suite Improved System Shield Authchip [R/NC] Authchip [R/Combat] > --- WEAPON (2) ------- Coil Gun KE Penetrator > --- INVENTORY (5) ---- Myomer Leg Encrypted Comm Array Authchip [R/Combat] Authchip [R/Combat] Authchip [R/Combat] Peak State ------------ > --- POWER ------------ Hybrid Antimatter Reactor Hybrid Antimatter Reactor > --- PROPULSION ------- Improved Antigrav System Cooled Nuclear Pulse Thruster Impulse Thruster Impulse Thruster Impulse Thruster Array > --- UTILITY ---------- Advanced Power Amplifier Gravity Neutralizer Advanced Target Analyzer Improved Armor Integrity Analyzer Advanced Reaction Control System Improved Hacking Suite Improved Hacking Suite System Shield Improved System Shield > --- WEAPON ----------- Improved KE Penetrator Hypervelocity Mass Driver > --- INVENTORY -------- Advanced Power Amplifier Encrypted Comm Array Long-range Missile Launcher Katana [Rating: 126] Favorites ----------- Power Micro Fission Core Engine Light Angular Momentum Engine Power Core Micro Fission Core Reactor Light Antimatter Reactor Propulsion VTOL Module Leg Aluminum Leg Wheel Wheel Hover Unit Hover Unit Flight Unit VTOL Module Utility Medium Storage Unit Device Gravity Neutralizer Storage Medium Storage Unit Processor Terrain Scan Processor Hackware Hacking Suite Protection Improved Light Armor Plating Weapon Gauss Rifle Energy Gun Backup Laser I Energy Cannon Latent Energy Streamer Ballistic Gun Gauss Rifle Ballistic Cannon Flak Cannon Launcher Grenade Launcher Impact Weapon Makeshift Hammer Slashing Weapon Katana Piercing Weapon Makeshift Spear Special Melee Weapon Datajack Build | -11 -10 -10 -10 -9 -8 -8 -8 -8 -8 -8 -7 -7 -7 -7 -6 -6 -6 -5 -5 -5 -4 -4 -4 -4 ------- Run | Yrd Mat Min Exi Min Mat Gar Mat Gar Mat Gar Fac Low Low Zio Pro Fac Gar Fac Ext Cet Fac Was Fac Gar Slots Evolved 12 | . . . . . 4 . . . . . 2 . . . . 2 . 2 . . 2 . . . Power 1 | . . . . . . . . . . . 1 . . . . . . . . . . . . . Propulsion 4 | . . . . . 3 . . . . . . . . . . 1 . . . . . . . . Utility 7 | . . . . . 1 . . . . . 1 . . . . 1 . 2 . . 2 . . . Weapon . | . . . . . . . . . . . . . . . . . . . . . . . . . Parts Attached 518 | 13 8 1 2 . 37 38 8 8 2 13 32 9 1 10 9 21 73 73 36 1 51 3 38 31 Power 87 | 2 . . . . 5 7 . 1 . 1 10 4 . 3 . 3 16 13 7 . 6 . 7 2 Engine 33 | 2 . . . . 4 2 . . . 1 2 2 . 2 . 1 4 7 5 . . . 1 . Core 35 | . . . . . 1 5 . 1 . . 8 2 . 1 . 2 7 6 2 . . . . . Reactor 19 | . . . . . . . . . . . . . . . . . 5 . . . 6 . 6 2 Propulsion 130 | 5 3 1 . . 10 20 3 5 . 5 4 2 . 2 3 8 18 10 4 . 9 . 9 9 Treads . | . . . . . . . . . . . . . . . . . . . . . . . . . Leg 12 | . . . . . . 4 . . . . . . . 1 . . . . . . . . . 7 Wheel 6 | 5 1 . . . . . . . . . . . . . . . . . . . . . . . Hover 22 | . 2 1 . . 8 2 . . . . 1 . . . . 2 . 1 . . 3 . 2 . Flight 90 | . . . . . 2 14 3 5 . 5 3 2 . 1 3 6 18 9 4 . 6 . 7 2 Utility 167 | 3 1 . . . 13 3 1 1 1 . 3 . . 2 4 9 25 40 17 . 24 1 11 8 Device 82 | 2 . . . . 1 1 . . . . 2 . . 2 4 1 10 19 11 . 18 1 8 2 Storage 6 | 1 . . . . 2 . 1 . 1 . . . . . . . . . 1 . . . . . Processor 15 | . 1 . . . 3 . . . . . . . . . . . 1 3 2 . 3 . 2 . Hackware 23 | . . . . . 2 1 . 1 . . 1 . . . . 6 . 5 . . 2 . 1 4 Protection 41 | . . . . . 5 1 . . . . . . . . . 2 14 13 3 . 1 . . 2 Artifact . | . . . . . . . . . . . . . . . . . . . . . . . . . Weapon 134 | 3 4 . 2 . 9 8 4 1 1 7 15 3 1 3 2 1 14 10 8 1 12 2 11 12 Energy Gun 6 | 2 . . . . . . . . . . 2 . . . . . . . 2 . . . . . Energy Cannon 20 | . . . 1 . . . . . . 7 6 1 1 . 1 . 3 . . . . . . . Ballistic Gun 62 | 1 1 . 1 . 4 6 3 . . . 4 2 . . . . 5 9 6 1 6 . 4 9 Ballistic Cannon 10 | . . . . . . . 1 . . . 3 . . 1 . . 1 1 . . 3 . . . Launcher 13 | . 3 . . . . 2 . . . . . . . . . . . . . . 2 2 4 . Special Weapon . | . . . . . . . . . . . . . . . . . . . . . . . . . Impact Weapon 6 | . . . . . . . . . 1 . . . . 1 . 1 3 . . . . . . . Slashing Weapon 6 | . . . . . 4 . . 1 . . . . . . . . . . . . 1 . . . Piercing Weapon 10 | . . . . . . . . . . . . . . 1 1 . 2 . . . . . 3 3 Special Melee Weapon 1 | . . . . . 1 . . . . . . . . . . . . . . . . . . . Unidentified Prototypes 11 | . . . . . 2 . . . 1 . 1 . . 1 . . 1 1 . . 2 . 2 . Corrupted Parts 2 | . . . . . . . . . . 1 . . . . . . 1 . . . . . . . System Corruption 20 | . . . . . . . . . . 10 . . . . . . 10 . . . . . . . Parts Lost 103 | . . 2 . . 1 7 2 3 . 4 6 2 . . 1 . 23 6 12 1 9 1 5 18 Power 14 | . . . . . . 1 . . . . 1 1 . . . . 4 2 3 . . 1 . 1 Propulsion 63 | . . 2 . . 1 6 1 1 . 3 5 1 . . . . 14 4 4 . 7 . 3 11 Utility 15 | . . . . . . . . 1 . . . . . . 1 . 4 . 3 . 2 . 1 3 Weapon 11 | . . . . . . . 1 1 . 1 . . . . . . 1 . 2 1 . . 1 3 Highest Loss Streak 10 | . . 2 . . 1 2 2 1 . 2 3 1 . . 1 . 5 1 5 1 4 1 5 10 To Critical Strikes 3 | . . . . . . . . . . . . . . . . . . . . . 1 . 1 1 Average Slot Usage (%) 81 | . 100 89 69 71 83 88 87 88 90 67 71 72 76 83 95 87 77 82 80 43 70 52 82 70 Engine 3 | . 14 14 14 14 8 . . . . 2 2 10 7 10 7 3 1 5 4 . . . . 2 Core 4 | . . . . . . 7 9 9 9 6 9 2 7 3 7 9 5 4 4 . . . . . Leg 1 | . . . . . . 6 . . . . . . . 5 2 . . . . . . . . 6 Hover 5 | . 5 22 14 14 35 4 . . . . 3 7 7 7 2 4 . 2 . . 4 . 2 . Flight 20 | . . . . . 3 25 34 35 36 24 19 11 15 18 32 33 28 21 19 5 9 5 18 9 Device 5 | . 14 14 14 14 2 2 . . . . 4 7 7 7 7 . 7 13 6 11 10 2 4 . Storage 5 | . 4 . . . 7 9 9 9 9 9 7 7 7 7 7 6 6 5 4 . . . . . Processor 4 | . 9 14 14 14 4 . . . . . . . . . . . 2 7 3 5 10 15 14 7 Hackware 14 | . . . . . 5 13 18 17 18 18 15 15 15 15 15 20 6 7 21 17 22 26 26 35 Protection 1 | . . . . . 6 . . . . . . . . . . . 7 3 . . . . . . Ballistic Gun 6 | . 14 14 7 14 3 17 16 9 9 4 2 . . . . . 3 6 10 2 1 . 4 3 Slashing Weapon 1 | . . . . . 6 . . 6 2 . . . . . . . . . . . 1 . . . Naked Turns . | . . . . . . . . . . . . . . . . . . . . . . . . . Heaviest Build 57 | 13 13 9 14 6 33 29 25 25 22 27 32 27 17 24 24 31 57 49 41 8 48 12 41 25 Greatest Support 130 | 26 20 12 6 6 34 46 26 25 25 25 32 21 17 25 29 36 48 49 49 16 48 15 41 130 Greatest Overweight (x) 4 | . 1 . 2 . 1 1 1 . . 4 1 2 . 1 . 1 1 1 . . 1 . 1 4 Average Overweight (x) . | . . . . . . . . . . . . . . . . . . . . . . . . . Largest Inventory Capacity 10 | 8 8 5 5 5 10 10 10 10 10 10 10 10 10 10 10 10 10 10 10 5 5 5 5 5 Average Capacity 8 | 7 6 5 5 5 9 10 10 10 10 10 10 10 10 10 10 10 10 10 9 5 5 5 5 5 Most Carried 10 | 5 7 5 5 5 10 10 10 10 10 10 10 10 10 10 10 10 10 10 10 3 5 5 5 5 Average Carried 8 | 2 5 4 4 4 8 9 10 9 9 9 9 9 9 9 9 8 9 9 8 2 4 4 4 4 Final Capacity 10 | 8 5 5 5 5 10 10 10 10 10 10 10 10 10 10 10 10 10 10 5 5 5 5 5 5 Final Carried 10 | 5 5 5 5 5 10 10 10 10 10 10 10 10 10 10 10 9 10 10 3 2 5 5 4 5 Class Distribution -------------------- 34% | Hacker-Sprinter 19% | Hacker-Mutant 10% | Scavenger-Sprinter 9% | Scavenger-Mutant 9% | Mutant 5% | Scavenger-Scout Dominant Class ---------------- Mutant | -10/Materials Mutant | -10/Mines Mutant | -10/Exiles Scout | -9/Mines Scavenger-Mutant | -8/Materials Hacker-Sprinter | -8/Garrison Hacker-Sprinter | -8/Materials Hacker-Sprinter | -8/Garrison Hacker-Sprinter | -8/Materials Hacker-Sprinter | -8/Garrison Hacker-Mutant | -7/Factory Hacker-Sprinter | -7/Lower Caves Hacker-Sprinter | -7/Lower Caves Derelict-Mutant | -7/Zion Scavenger-Sprinter | -6/Proximity Caves Hacker-Mutant | -6/Factory Scavenger-Sprinter | -6/Garrison Scavenger-Scout | -5/Factory Hacker-Sprinter | -5/Extension Hacker-Mutant | -5/Cetus Hacker-Mutant | -4/Factory Hacker-Mutant | -4/Waste Hacker-Sprinter | -4/Factory Wizard-Sprinter | -4/Garrison Resources | -11 -10 -10 -10 -9 -8 -8 -8 -8 -8 -8 -7 -7 -7 -7 -6 -6 -6 -5 -5 -5 -4 -4 -4 -4 ----------- Run | Yrd Mat Min Exi Min Mat Gar Mat Gar Mat Gar Fac Low Low Zio Pro Fac Gar Fac Ext Cet Fac Was Fac Gar Matter Collected 10721 | 348 298 45 142 21 467 1350 366 565 28 139 314 164 188 100 93 212 1168 1424 917 . 888 333 566 585 Remotely . | . . . . . . . . . . . . . . . . . . . . . . . . . Salvage Created 13443 | 232 334 7 . 91 1040 1253 561 845 132 591 559 50 . 127 140 369 2401 670 745 . 582 1265 814 635 Parts 579 | 23 22 1 . 1 61 71 25 37 6 35 25 4 . 1 8 9 99 28 30 . 30 5 31 27 Haulers Intercepted 13 | . 2 . . . 2 . 1 . . . 2 . . . . 2 . 2 . . 1 . 1 . Recyclers Shooed 13 | . 2 . . 1 2 . 3 . . . . . . . . . . . 1 . 2 . 2 . Parts Field Recycled . | . . . . . . . . . . . . . . . . . . . . . . . . . Retrieved Matter . | . . . . . . . . . . . . . . . . . . . . . . . . . Parts Self-Destructed 13 | . . . . . . . . . . . . 1 1 1 10 . . . . . . . . . Prevented 2 | . . . . . . . . . . . . . 2 . . . . . . . . . . . Kills | -11 -10 -10 -10 -9 -8 -8 -8 -8 -8 -8 -7 -7 -7 -7 -6 -6 -6 -5 -5 -5 -4 -4 -4 -4 ------- Run | Yrd Mat Min Exi Min Mat Gar Mat Gar Mat Gar Fac Low Low Zio Pro Fac Gar Fac Ext Cet Fac Was Fac Gar Combat Hostiles Destroyed 181 | . 5 2 . . 10 33 7 19 1 11 9 2 . . 2 . 24 11 8 . 7 6 11 13 Melee 22 | . . . . . 7 . . 5 . . . . . . 2 . 3 . . . 1 . . 4 Guns 104 | . . . . . 3 30 7 9 1 1 4 2 . . . . 14 8 8 . 2 . 7 8 Cannons 9 | . . . . . . . . 5 . . . . . . . . . . . . 4 . . . AOE 44 | . 5 2 . . . 3 . . . 9 4 . . . . . 7 3 . . . 6 4 1 Classes Destroyed 23 | 3 5 . . . 4 2 1 1 . 1 1 . . . 1 . . 1 1 . 1 1 . . Worker 13 | 2 1 . . . 4 . . . 1 . 3 . . . . . . 1 . . 1 . . . Builder 4 | . 1 . . . 1 . . . . . 1 . . . . . . . 1 . . . . . Tunneler 6 | 5 . . . . . . . . . . . . . . . . . 1 . . . . . . Hauler 13 | . 2 . . . 2 . 1 . . . 2 . . . . 2 . 2 . . 1 . 1 . Recycler 17 | 1 2 . . 1 3 . 2 . 1 . 2 . . . . 1 . . 1 . . . 3 . Carrier 1 | . . . . . . . . . . . . . . . . . . . 1 . . . . . Minesweeper 1 | . . . . . . . . . . . . . . . 1 . . . . . . . . . Mechanic 2 | . . . . . 2 . . . . . . . . . . . . . . . . . . . Operator 4 | . . . . . 2 . . . . . 1 . . . . . 1 . . . . . . . Drone 1 | . . . . . . . . . . . 1 . . . . . . . . . . . . . Watcher 9 | . 2 . . . 2 . 1 1 . . . . . . . . . . 1 . 1 . 1 . Swarmer 48 | . 3 2 . . . 12 . 1 . 3 6 2 . . . . 7 2 2 . . . 5 3 Saboteur 2 | . . . . . . . . . . . . . . . . . . 1 . . 1 . . . Grunt 52 | . 2 . . . 6 9 1 11 . 2 1 . . . 2 . 4 4 2 . 3 . 3 2 Brawler 8 | . . . . . . 1 1 4 . 1 . . . . . . . . . . 1 . . . Duelist 7 | . . . . . . . . 2 . . . . . . . . 4 1 . . . . . . Protector 2 | . . . . . . . 1 . . . . . . . . . . . 1 . . . . . Sentry 32 | . . . . . 2 10 2 . 1 1 . . . . . . 8 2 3 . . . 1 2 Specialist 5 | . . . . . . . . . . 4 1 . . . . . . . . . . . . . Hunter 13 | . . . . . 2 . 2 1 . . 1 . . . . . . 1 . . . . 2 4 Programmer 5 | . . . . . . 1 . . . . . . . . . . 1 . . . 1 . . 2 Compactor 6 | . . . . . . . . . . . . . . . . . . . . . . 6 . . Wasp 1 | . . . . . . . . . . . . . . . . . . . . . 1 . . . Fireman 1 | . . . . . . . . . . . . . . . . . . . . . 1 . . . Best Kill Streak 8 | 6 8 2 . 1 5 5 3 4 2 7 4 2 . . 2 1 3 4 2 . 3 5 5 5 Combat Bots Only 7 | . 5 2 . . 3 5 3 4 1 7 3 2 . . 1 . 3 3 2 . 3 5 5 5 Max Kills in Single Turn 6 | 1 2 1 . 1 1 3 1 1 1 6 4 1 . . 1 1 3 4 1 . 2 3 3 1 Gunslinging 1 | . . . . . . 1 . . . . . . . . . . . . . . . . 1 . Exploded 6 | . 2 1 . . . 3 . . . 6 3 . . . . . 3 3 . . . 3 2 1 Melee 1 | . . . . . 1 . . 1 . . . . . . 1 . 1 . . . 1 . . 1 Uniques/NPCs Destroyed . | . . . . . . . . . . . . . . . . . . . . . . . . . Combat | -11 -10 -10 -10 -9 -8 -8 -8 -8 -8 -8 -7 -7 -7 -7 -6 -6 -6 -5 -5 -5 -4 -4 -4 -4 -------- Run | Yrd Mat Min Exi Min Mat Gar Mat Gar Mat Gar Fac Low Low Zio Pro Fac Gar Fac Ext Cet Fac Was Fac Gar Hostile Shots Fired 1557 | . 9 6 . 1 50 138 16 47 6 39 91 13 2 . 9 . 379 140 135 8 159 3 84 222 Missed 639 | . 4 3 . 1 21 40 6 19 3 14 44 7 1 . 4 . 169 68 53 3 75 2 37 65 Damage Taken 14041 | . 53 66 . 9 306 1213 270 435 46 358 682 92 19 . 93 . 2184 1458 1702 127 1576 30 908 2414 Core 3080 | . 32 . . 3 40 152 43 117 14 109 163 . 19 . . . 338 457 438 . 279 30 207 639 Absorbed by Shields 403 | . . . . . . . . 36 . 23 . . . . . . 80 10 104 . 52 . . 98 Redirected to Shielding 121 | . . . . . . 16 . . . . . . . . . . 73 . 32 . . . . . Ignored by Resistances 141 | . . . . . 59 . . . . . . . . . . . . 8 74 . . . . . Regen/Repaired (Parts) 1315 | . . . . . 223 . 197 . . . . . . . . 81 . 381 . . . . 433 . Core Remaining (%) 57 | 100 . . . 86 . . . . . 13 . . . . 74 . 60 . . 10 . . . . Volleys Fired 791 | 19 19 4 . 7 38 121 41 85 2 15 37 4 2 . 1 . 88 81 92 11 47 13 33 31 Largest 2 | 2 2 2 . 1 2 2 2 2 1 1 2 1 1 . 1 . 2 2 2 1 2 1 2 2 Hottest 253 | 80 50 50 . 20 56 61 56 72 28 60 113 60 60 . 60 . 63 75 253 28 99 43 78 68 Shots Fired 1190 | 38 28 5 . 7 46 227 79 109 2 15 41 4 5 . 1 . 94 129 159 11 78 13 55 44 Gun 1061 | 38 18 1 . 7 46 224 79 85 2 8 28 3 4 . . . 90 127 159 11 42 . 45 44 Cannon 87 | . . . . . . . . 24 . 7 13 1 1 . 1 . 4 2 . . 34 . . . Launcher 42 | . 10 4 . . . 3 . . . . . . . . . . . . . . 2 13 10 . Special . | . . . . . . . . . . . . . . . . . . . . . . . . . Kinetic 1082 | 18 18 1 . 7 46 224 79 109 2 8 26 3 . . . . 90 129 146 11 76 . 45 44 Thermal 46 | 20 . . . . . . . . . . 9 . 4 . . . . . 13 . . . . . Explosive 42 | . 10 4 . . . 3 . . . . . . . . . . . . . . 2 13 10 . Electromagnetic 20 | . . . . . . . . . . 7 6 1 1 . 1 . 4 . . . . . . . Robot Hit Streak 16 | 5 4 2 . 2 11 13 10 16 6 13 14 3 . . 2 . 8 12 12 2 6 10 10 5 Robot Miss Streak 13 | 3 2 1 . 1 4 7 3 7 . . 7 4 . . . . 6 13 4 2 7 1 5 4 Penetration Max 2 | . . . . . 1 1 1 1 . . . . . . . . 2 1 1 1 1 . 1 1 Secondary Targets 12 | . . . . . 2 3 . . . . . . . . . . . 1 2 . . . 1 3 Max Gunslinging Chain 1 | . . . . . 1 1 . . . . . . . . . . . 1 1 . . . 1 1 Shots Hit Robots 826 | 22 15 3 . 4 65 121 49 66 6 9 25 4 . 2 6 6 110 76 104 6 45 11 33 38 Core Hits 533 | 12 19 2 . 2 24 49 14 46 2 18 41 10 . 1 4 2 75 56 43 1 38 14 39 21 Critical Kills 22 | . . . . . . 3 . . 1 . . . . . . . 2 2 1 . 7 . 2 4 Critical Parts Destroyed 34 | . 1 . . . . 5 . 2 1 1 . . . . . . 3 . 2 . 15 . 2 2 Critical Strikes 77 | . 1 . . . 5 8 . 2 2 1 . . . . . 1 13 2 3 . 24 . 5 10 Destroy 57 | . 1 . . . . 8 . 2 1 . . . . . . . 6 2 3 . 24 . 4 6 Smash 2 | . . . . . . . . . 1 1 . . . . . . . . . . . . . . Sever 5 | . . . . . 5 . . . . . . . . . . . . . . . . . . . Impale 13 | . . . . . . . . . . . . . . . . 1 7 . . . . . 1 4 Melee Attacks 254 | . . . . . 61 . . 37 4 5 . . . 6 6 11 67 . . . 8 . 6 43 Impact 14 | . . . . . . . . . 4 5 . . . 2 . 2 1 . . . . . . . Slashing 104 | . . . . . 59 . . 37 . . . . . . . . . . . . 8 . . . Piercing 134 | . . . . . . . . . . . . . . 4 6 9 66 . . . . . 6 43 Sneak Attacks 31 | . . . . . 17 . . 1 2 . . . . . 1 4 1 . . . 2 . 2 1 Combat Hostiles 6 | . . . . . 2 . . 1 1 . . . . . . . 1 . . . 1 . . . Follow-up Attacks . | . . . . . . . . . . . . . . . . . . . . . . . . . Damage Inflicted 33603 | 209 654 143 . 76 3075 2967 1015 1603 348 1071 1911 155 . 136 243 349 5058 2577 2486 185 2404 2978 2666 1294 Guns 13953 | 209 91 . . 58 554 2766 1015 900 45 77 372 32 . . . . 1697 1524 2371 185 665 . 797 595 Cannons 987 | . . . . . . . . 370 . 17 42 7 . . 5 . 19 61 . . 466 . . . Explosions 10793 | . 563 143 . . . 201 . . . 844 1497 116 . . 72 . 527 992 115 . 977 2978 1630 138 Melee 7852 | . . . . . 2521 . . 333 303 133 . . . 136 166 349 2815 . . . 296 . 239 561 Ramming 18 | . . . . 18 . . . . . . . . . . . . . . . . . . . . Kinetic 14424 | 108 91 . . 58 554 2766 1015 1270 45 77 344 32 . . . . 1697 1585 2074 185 1131 . 797 595 Thermal 748 | 101 . . . . . . . . . . 200 . . . . . . . 412 . 35 . . . Explosive 7804 | . 563 143 . . . 201 . . . . 476 . . . . . . 992 . . 683 2978 1630 138 Electromagnetic 2757 | . . . . . . . . . . 861 891 123 . . 77 . 546 . . . 259 . . . Impact 436 | . . . . . . . . . 303 133 . . . . . . . . . . . . . . Slashing 3150 | . . . . . 2521 . . 333 . . . . . . . . . . . . 296 . . . Piercing 4266 | . . . . . . . . . . . . . . 136 166 349 2815 . . . . . 239 561 Highest Corruption 24 | . . . . . . . . . . 22 21 22 24 24 2 . 23 8 5 3 3 3 3 3 Average Corruption 7 | . . . . . . . . . . 5 13 21 23 24 2 . 11 6 3 3 2 3 3 3 Corruption Purged 5 | . . . . . . . . . . . . . . . . . . 3 2 . . . . . Corruption Blocked 2 | . . . . . . . . . . . . . . . . . . 2 . . . . . . Effects 190 | . . . . . . . . . . 13 27 15 11 1 1 . 52 22 18 2 3 2 11 12 Message Errors 49 | . . . . . . . . . . 4 7 3 2 . . . 14 8 2 . . 2 3 4 Matter Fused 43 | . . . . . . . . . . 5 6 3 3 . 1 . 12 3 2 . 1 . 2 5 Heat Flow Errors 22 | . . . . . . . . . . . 2 2 . . . . 9 2 5 2 . . . . Energy Discharges 24 | . . . . . . . . . . 2 . 4 . 1 . . 5 2 4 . . . 3 3 Parts Rejected 5 | . . . . . . . . . . 1 1 . . . . . 3 . . . . . . . Data Loss (minor) 20 | . . . . . . . . . . 1 2 2 1 . . . 4 4 3 . 2 . 1 . Data Loss (major) 5 | . . . . . . . . . . . . . 1 . . . 2 1 . . . . 1 . Misfires 9 | . . . . . . . . . . . 2 . 3 . . . 2 1 . . . . 1 . Alerts 4 | . . . . . . . . . . . 1 . 1 . . . 1 . 1 . . . . . Misdirections 4 | . . . . . . . . . . . 3 1 . . . . . . . . . . . . Weapon Failures 5 | . . . . . . . . . . . 3 . . . . . . 1 1 . . . . . Overload Shots 5 | . . . . . . . . . . . . . . . . . . . 5 . . . . . Effects 1 | . . . . . . . . . . . . . . . . . . . 1 . . . . . Energy Bleed 1 | . . . . . . . . . . . . . . . . . . . 1 . . . . . Overflow Damage 1247 | . 9 48 . . 499 . . . 118 80 119 . . 47 16 51 97 53 . . 54 1 55 . Projectiles 34 | . . . . . . . . . . . . . . . . . . 34 . . . . . . Explosions 258 | . 9 48 . . . . . . . 4 119 . . . . . . 19 . . 3 1 55 . Melee 955 | . . . . . 499 . . . 118 76 . . . 47 16 51 97 . . . 51 . . . Knockbacks 9 | . . . . . . . . 5 . . . . . . . . . . . . 4 . . . Impact . | . . . . . . . . . . . . . . . . . . . . . . . . . Kinetic 9 | . . . . . . . . 5 . . . . . . . . . . . . 4 . . . Secondary . | . . . . . . . . . . . . . . . . . . . . . . . . . Self-Inflicted Damage 242 | . 13 44 . 9 . 23 . . . . 142 . . . . . . . . . 11 . . . Shots 6 | . 1 1 . . . 1 . . . . 2 . . . . . . . . . 1 . . . Rammed 2 | . . . . 2 . . . . . . . . . . . . . . . . . . . . Targets Rammed 2 | . . . . 2 . . . . . . . . . . . . . . . . . . . . Kicked . | . . . . . . . . . . . . . . . . . . . . . . . . . Crushed . | . . . . . . . . . . . . . . . . . . . . . . . . . Highest Temperature 487 | 80 10 . . . 35 54 19 152 . 24 357 206 16 . 211 198 487 225 391 253 93 . 218 31 Average Temperature 62 | 39 7 . . . 9 12 7 57 . 11 126 82 8 . 75 62 99 32 103 132 33 . 46 13 Received Heat Transfer 3162 | . . . . . 99 342 45 223 18 126 57 36 . . 18 . 593 198 739 9 261 . 203 195 Effects 15 | . . . . . . . . . . . 2 . . . . . 4 . 8 1 . . . . Shutdowns 2 | . . . . . . . . . . . . . . . . . 1 . 1 . . . . . Energy Bleed 3 | . . . . . . . . . . . . . . . . . 2 . . 1 . . . . Interference 8 | . . . . . . . . . . . 1 . . . . . 1 . 6 . . . . . Short Circuit 2 | . . . . . . . . . . . 1 . . . . . . . 1 . . . . . Siege Activations . | . . . . . . . . . . . . . . . . . . . . . . . . . Robots Corrupted 1 | . . . . . . . . . . . 1 . . . . . . . . . . . . . Combat Hostiles 1 | . . . . . . . . . . . 1 . . . . . . . . . . . . . Parts Fried 19 | . . . . . . . . . . 5 6 . . . . . . . 6 . 2 . . . Impact Corruptions 8 | . . . . . . . . . 4 4 . . . . . . . . . . . . . . Robots Melted . | . . . . . . . . . . . . . . . . . . . . . . . . . Combat Hostiles . | . . . . . . . . . . . . . . . . . . . . . . . . . Parts Melted 4 | . . . . . . 1 . 1 . . . . . . . . 1 . 1 . . . . . Heat Transferred 804 | 225 . . . . . . . . . . 248 . . . . . . . 331 . . . . . Parts Sabotaged . | . . . . . . . . . . . . . . . . . . . . . . . . . Parts Stolen . | . . . . . . . . . . . . . . . . . . . . . . . . . Parts Stripped . | . . . . . . . . . . . . . . . . . . . . . . . . . Power Chain Reactions 2 | . . . . . . . . . . . 1 . . . . . . . . . 1 . . . Latent Energy Used 2261 | . . . . . . . . . . 555 1108 64 96 . 68 . 370 . . . . . . . LE Corruption 40 | . . . . . . . . . . 11 17 1 2 . 2 . 7 . . . . . . . Alert | -11 -10 -10 -10 -9 -8 -8 -8 -8 -8 -8 -7 -7 -7 -7 -6 -6 -6 -5 -5 -5 -4 -4 -4 -4 ------- Run | Yrd Mat Min Exi Min Mat Gar Mat Gar Mat Gar Fac Low Low Zio Pro Fac Gar Fac Ext Cet Fac Was Fac Gar Peak Influence 2470 | 40 327 173 . 35 286 1674 1119 1876 1004 1531 1503 . . . . 175 2095 2470 2099 1155 1147 583 489 839 Initial 1190 | . 26 127 . . 13 133 815 584 914 654 811 . . . . . 57 1094 1190 1155 641 359 408 313 Average 938 | 15 205 145 . 13 146 930 907 1358 949 1049 1190 . . . . 69 1336 1584 1596 1152 726 495 302 513 Maximum Alert Level 5 | . 1 . . . 1 5 4 5 3 4 4 . . . . . 5 5 5 4 4 2 2 3 Low Security (%) 17 | 100 28 100 . 100 68 4 . . . . . . . . . 100 9 . . . . . 27 . Level 1 9 | . 71 . . . 31 14 . . . . . . . . . . 1 . . . . 22 27 44 Level 2 10 | . . . . . . 16 . 4 . 1 . . . . . . 1 . . . 64 77 44 30 Level 3 16 | . . . . . . 25 81 15 100 49 23 . . . . . 16 . . . 28 . . 25 Level 4 28 | . . . . . . 30 18 44 . 48 76 . . . . . 38 52 41 100 7 . . . Level 5 15 | . . . . . . 8 . 35 . . . . . . . . 32 46 31 . . . . . High Security 1 | . . . . . . . . . . . . . . . . . . . 26 . . . . . Max Security . | . . . . . . . . . . . . . . . . . . . . . . . . . Squads Dispatched 79 | . 2 . . . 5 . 4 . . . 9 . . . . 5 . 22 10 . 12 . 10 . Investigation 19 | . 2 . . . 3 . 1 . . . 2 . . . . 3 . 4 . . 2 . 2 . Extermination 5 | . . . . . . . . . . . . . . . . 2 . 1 . . 1 . 1 . Reinforcement 18 | . . . . . 2 . 1 . . . 3 . . . . . . 6 . . 4 . 2 . Assault 21 | . . . . . . . 1 . . . 1 . . . . . . 5 10 . 4 . . . Garrison 16 | . . . . . . . 1 . . . 3 . . . . . . 6 . . 1 . 5 . Intercept . | . . . . . . . . . . . . . . . . . . . . . . . . . Searches Triggered . | . . . . . . . . . . . . . . . . . . . . . . . . . Construction Impeded 3 | . . . . . . . . . . . 1 . . . . . . 1 . . . . 1 . Haulers Reinforced 3 | . . . . . . . . . . . . . . . . . . 1 . . 1 . 1 . Active Scanning Responses . | . . . . . . . . . . . . . . . . . . . . . . . . . Cargo Convoy Interrupts . | . . . . . . . . . . . . . . . . . . . . . . . . . Stealth | -11 -10 -10 -10 -9 -8 -8 -8 -8 -8 -8 -7 -7 -7 -7 -6 -6 -6 -5 -5 -5 -4 -4 -4 -4 --------- Run | Yrd Mat Min Exi Min Mat Gar Mat Gar Mat Gar Fac Low Low Zio Pro Fac Gar Fac Ext Cet Fac Was Fac Gar Distress Signals 21 | . . . . . 4 . 1 . . . 1 . . . . . . 6 2 1 2 . 4 . Communications Jammed . | . . . . . . . . . . . . . . . . . . . . . . . . . Distress Signals . | . . . . . . . . . . . . . . . . . . . . . . . . . Times Spotted 569 | . 8 3 . 1 30 48 23 29 1 21 24 14 4 . 5 3 45 110 97 4 43 6 31 19 Peak Tracking Total 28 | . 3 3 . 1 4 6 7 4 1 9 7 7 3 . 2 2 10 14 28 5 12 6 7 7 Tactical Retreats 81 | . . . . 1 2 6 1 5 . 9 4 4 2 . 2 1 7 18 9 . 8 . 1 1 Traps | -11 -10 -10 -10 -9 -8 -8 -8 -8 -8 -8 -7 -7 -7 -7 -6 -6 -6 -5 -5 -5 -4 -4 -4 -4 ------- Run | Yrd Mat Min Exi Min Mat Gar Mat Gar Mat Gar Fac Low Low Zio Pro Fac Gar Fac Ext Cet Fac Was Fac Gar Traps Triggered 43 | . 4 . . . 1 14 . 2 . 5 . . . . . . 5 4 1 . 2 . 1 4 Indirectly 2 | . . . . . . . . . . . . . . . . . 2 . . . . . . . Trap Hack Attempts . | . . . . . . . . . . . . . . . . . . . . . . . . . Triggered . | . . . . . . . . . . . . . . . . . . . . . . . . . Disarmed . | . . . . . . . . . . . . . . . . . . . . . . . . . Reprogrammed 9 | . 1 . . . . . . . . . . . . . . . . . . . 2 . 6 . Reused 10 | . . . . . . . . . . 7 . . . . . . . . . . 1 . 2 . Traps Extracted . | . . . . . . . . . . . . . . . . . . . . . . . . . Installed 15 | . . . . . . . . . . 9 . . . . 6 . . . . . . . . . Triggered 13 | . . . . . . . . . . 7 . . 1 . 2 . . . . . 1 . 2 . Most Traps Carried 4 | . . . . . . . . . . 4 . . . . . . . . . . . . . . Machines | -11 -10 -10 -10 -9 -8 -8 -8 -8 -8 -8 -7 -7 -7 -7 -6 -6 -6 -5 -5 -5 -4 -4 -4 -4 ---------- Run | Yrd Mat Min Exi Min Mat Gar Mat Gar Mat Gar Fac Low Low Zio Pro Fac Gar Fac Ext Cet Fac Was Fac Gar Machines Disabled 114 | . 4 . . . 3 9 2 9 . 7 20 . 1 . . 1 16 23 3 . 10 . 2 4 Max in Single Turn 8 | . 2 . . . 1 2 1 1 . 1 8 . 1 . . 1 2 4 2 . 4 . 1 2 Garrison Access 4 | . . . . . . . . . . . 1 . . . . 1 . . . . 2 . . . Garrison Relay 19 | . . . . . . 4 . 7 . 1 . . . . . . 5 . . . . . . 2 Phase Generator 3 | . . . . . . 1 . . . . . . . . . . 1 . . . . . . 1 Energy Cycler 1 | . . . . . . . . . . . . . . . . . . . 1 . . . . . Machines Repaired . | . . . . . . . . . . . . . . . . . . . . . . . . . Machines Dismantled . | . . . . . . . . . . . . . . . . . . . . . . . . . Machines Sabotaged . | . . . . . . . . . . . . . . . . . . . . . . . . . Overloaded Fab Kills . | . . . . . . . . . . . . . . . . . . . . . . . . . Hacking | -11 -10 -10 -10 -9 -8 -8 -8 -8 -8 -8 -7 -7 -7 -7 -6 -6 -6 -5 -5 -5 -4 -4 -4 -4 --------- Run | Yrd Mat Min Exi Min Mat Gar Mat Gar Mat Gar Fac Low Low Zio Pro Fac Gar Fac Ext Cet Fac Was Fac Gar Machines Accessed 113 | . 6 . 5 . 11 2 9 2 3 . 8 . 1 1 . 15 2 15 7 . 10 . 15 1 Terminals 62 | . 5 . . . 6 2 6 2 1 . 3 . . . . 6 2 8 7 . 5 . 8 1 Fabricators 8 | . . . . . . . . . . . 2 . . . . 2 . 2 . . 2 . . . Repair Stations 15 | . . . . . 2 . 2 . . . 2 . . . . 3 . 2 . . . . 4 . Recycling Units 6 | . 1 . . . 1 . . . 1 . . . . . . . . 2 . . 1 . . . Scanalyzers 7 | . . . . . 1 . . . . . . . . . . 2 . 1 . . 1 . 2 . Garrison Access 8 | . . . . . 1 . 1 . 1 . 1 . . . . 2 . . . . 1 . 1 . Total Hacks 457 | . 21 . 50 . 37 5 30 4 7 . 20 . 1 4 . 88 5 51 17 . 39 . 72 6 Successful 248 | . 4 . 50 . 18 2 13 2 4 . 6 . 1 4 . 48 1 30 10 . 17 . 36 2 Failed 206 | . 17 . . . 18 3 16 2 3 . 14 . . . . 40 4 21 7 . 22 . 35 4 Catastrophic 44 | . 2 . . . 2 2 4 1 . . 1 . . . . 10 1 6 2 . 5 . 8 . Database Lockouts 3 | . . . . . 1 . 1 . . . . . . . . . . . . . . . 1 . Manual 118 | . 7 . 1 . 12 2 23 2 4 . 2 . . 2 . 18 1 9 5 . 15 . 11 4 Terminals 229 | . 18 . . . 18 5 23 4 4 . 10 . . . . 39 5 19 17 . 26 . 35 6 Fabricators 33 | . . . . . . . . . . . 4 . . . . 18 . 5 . . 6 . . . Repair Stations 77 | . . . . . 14 . 6 . . . 5 . . . . 17 . 15 . . . . 20 . Recycling Units 12 | . 3 . . . 2 . . . 1 . . . . . . . . 4 . . 2 . . . Scanalyzers 42 | . . . . . 2 . . . . . . . . . . 12 . 8 . . 4 . 16 . Garrison Access 9 | . . . . . 1 . 1 . 2 . 1 . . . . 2 . . . . 1 . 1 . Terminal Hacks 130 | . 4 . 50 . 4 2 7 2 2 . 2 . 1 4 . 14 1 5 10 . 10 . 10 2 Record 51 | . . . 49 . . . . . . . . . 1 . . . . . . . 1 . . . Part Schematic 4 | . . . . . . . . . . . . . . 4 . . . . . . . . . . Robot Schematic 2 | . . . . . . . . . . . . . . . . 1 . . . . . . 1 . Robot Analysis 14 | . 2 . . . 2 . 2 . 1 . 1 . . . . . . . . . 3 . 3 . Prototype ID Bank 7 | . 1 . . . . . . . . . . . . . . 1 . 2 1 . 1 . 1 . Open Door 7 | . . . . . . . . . . . . . . . . . . 1 6 . . . . . Level Access Points 2 | . . . . . . . . . . . . . . . . 1 . . . . 1 . . . Branch Access Points 3 | . . . . . . . . . . . 1 . . . . . . 1 . . 1 . . . Emergency Access Points 2 | . . . . . . 1 . 1 . . . . . . . . . . . . . . . . Machine Index 2 | . . . . . . . . . . . . . . . . . . . . . 1 . 1 . Terminal Index 5 | . . . . . 1 . 1 . 1 . . . . . . 1 . . 1 . . . . . Fabricator Index 1 | . . . . . . . . . . . . . . . . 1 . . . . . . . . Recycling Unit Index 1 | . . . . . . . . . . . . . . . . 1 . . . . . . . . Unreport Threat 8 | . . . . . 1 . 2 . . . . . . . . 2 . . 1 . . . 2 . Locate Traps 1 | . . . . . . . . . . . . . . . . . . 1 . . . . . . Reprogram Traps 3 | . 1 . . . . . . . . . . . . . . . . . . . 1 . 1 . Recall Investigation 4 | . . . . . . . 1 . . . . . . . . 2 . . . . . . 1 . Registered Components 1 | . . . . . . . . . . . . . . . . 1 . . . . . . . . Registered Prototypes 1 | . . . . . . . . . . . . . . . . . . . . . 1 . . . Zone Layout 5 | . . . . . . . 1 . . . . . . . . 3 . . 1 . . . . . Garrison Registry 3 | . . . . . . . . 1 . . . . . . . . 1 . . . . . . 1 Security Stations 2 | . . . . . . 1 . . . . . . . . . . . . . . . . . 1 Derelict Proto ID Bank 1 | . . . 1 . . . . . . . . . . . . . . . . . . . . . Fabricator Hacks 25 | . . . . . . . . . . . 2 . . . . 15 . 4 . . 4 . . . Network Status 2 | . . . . . . . . . . . 1 . . . . 1 . . . . . . . . Load Schematic 11 | . . . . . . . . . . . . . . . . 7 . 2 . . 2 . . . Build 12 | . . . . . . . . . . . 1 . . . . 7 . 2 . . 2 . . . Repair Station Hacks 46 | . . . . . 10 . 5 . . . 1 . . . . 6 . 13 . . . . 11 . Scan Component 26 | . . . . . 6 . 3 . . . . . . . . 4 . 7 . . . . 6 . Repair 19 | . . . . . 4 . 2 . . . . . . . . 2 . 6 . . . . 5 . Refit 1 | . . . . . . . . . . . 1 . . . . . . . . . . . . . Recycling Unit Hacks 2 | . . . . . 1 . . . 1 . . . . . . . . . . . . . . . Retrieve Components 2 | . . . . . 1 . . . 1 . . . . . . . . . . . . . . . Scanalyzer 36 | . . . . . 2 . . . . . . . . . . 11 . 7 . . 2 . 14 . Insert Component 13 | . . . . . 1 . . . . . . . . . . 5 . 2 . . 1 . 4 . Analyze 23 | . . . . . 1 . . . . . . . . . . 6 . 5 . . 1 . 10 . Garrison Access Hacks 8 | . . . . . 1 . 1 . 1 . 1 . . . . 2 . . . . 1 . 1 . Unlock Access 5 | . . . . . 1 . 1 . 1 . . . . . . 1 . . . . . . 1 . Seal Access 3 | . . . . . . . . . . . 1 . . . . 1 . . . . 1 . . . Unauthorized Hacks 1 | . . . . . . . . . . . . . . . . . . 1 . . . . . . Terminals . | . . . . . . . . . . . . . . . . . . . . . . . . . Fabricators . | . . . . . . . . . . . . . . . . . . . . . . . . . Repair Stations . | . . . . . . . . . . . . . . . . . . . . . . . . . Recycling Units 1 | . . . . . . . . . . . . . . . . . . 1 . . . . . . Mask 1 | . . . . . . . . . . . . . . . . . . 1 . . . . . . Scanalyzers . | . . . . . . . . . . . . . . . . . . . . . . . . . Garrison Access . | . . . . . . . . . . . . . . . . . . . . . . . . . Data Cores Recovered . | . . . . . . . . . . . . . . . . . . . . . . . . . Used . | . . . . . . . . . . . . . . . . . . . . . . . . . Hacking Detections 89 | . 6 . . . 11 2 8 2 1 . 7 . . . . 14 2 13 3 . 8 . 11 1 Full Trace Events 20 | . 3 . . . 2 1 1 . . . 1 . . . . 3 1 4 . . 2 . 2 . Feedback Events 1 | . . . . . . . . . . . 1 . . . . . . . . . . . . . Corruption 1 | . . . . . . . . . . . 1 . . . . . . . . . . . . . Feedback Blocked . | . . . . . . . . . . . . . . . . . . . . . . . . . Robot Schematics Acquired 5 | . . . . . . . . . . . . . . 3 . 1 . . . . . . 1 . Robots Built 15 | . . . . . . . . . . . 2 . . . . 9 . 2 . . 2 . . . Authchips 5 | . . . . . . . . . . . 1 . . . . 4 . . . . . . . . Time 826 | . . . . . . . . . . . 58 . . . . 462 . 204 . . 102 . . . Total Robot Build Rating 93 | . . . . . . . . . . . 6 . . . . 55 . 16 . . 16 . . . Part Schematics Acquired 29 | . . . . . 1 . . . . . . . . 18 . 4 . 1 . . 1 . 4 . Parts Built 4 | . . . . . . . . . . . . . . . . 2 . . . . 2 . . . Authchips 1 | . . . . . . . . . . . . . . . . 1 . . . . . . . . Time 81 | . . . . . . . . . . . . . . . . 42 . . . . 39 . . . Total Part Build Rating 22 | . . . . . . . . . . . . . . . . 8 . . . . 14 . . . Parts Repaired 18 | . . . . . 4 . 2 . . . . . . . . 2 . 6 . . . . 4 . Time 885 | . . . . . 146 . 100 . . . . . . . . 44 . 363 . . . . 232 . Parts Recycled . | . . . . . . . . . . . . . . . . . . . . . . . . . Recycled Matter . | . . . . . . . . . . . . . . . . . . . . . . . . . Retrieved Matter . | . . . . . . . . . . . . . . . . . . . . . . . . . Retrieved Components 4 | . . . . . 2 . . . 2 . . . . . . . . . . . . . . . Parts Scanalyzed 11 | . . . . . 1 . . . . . . . . . . 4 . 1 . . 1 . 4 . Part Schematics Acquired 11 | . . . . . 1 . . . . . . . . . . 4 . 1 . . 1 . 4 . Parts Damaged 3 | . . . . . . . . . . . . . . . . 1 . 1 . . . . 1 . Bothacking | -11 -10 -10 -10 -9 -8 -8 -8 -8 -8 -8 -7 -7 -7 -7 -6 -6 -6 -5 -5 -5 -4 -4 -4 -4 ------------ Run | Yrd Mat Min Exi Min Mat Gar Mat Gar Mat Gar Fac Low Low Zio Pro Fac Gar Fac Ext Cet Fac Was Fac Gar Used RIF Installer . | . . . . . . . . . . . . . . . . . . . . . . . . . Robots Hacked 1 | . . . . . 1 . . . . . . . . . . . . . . . . . . . Non-combat 1 | . . . . . 1 . . . . . . . . . . . . . . . . . . . Combat . | . . . . . . . . . . . . . . . . . . . . . . . . . Robot Hacks Applied 2 | . . . . . 2 . . . . . . . . . . . . . . . . . . . parse_system 1 | . . . . . 1 . . . . . . . . . . . . . . . . . . . no_distress 1 | . . . . . 1 . . . . . . . . . . . . . . . . . . . Relay Couplers Released 86 | . . . . . . 21 . 27 . 4 . . . . . . 24 . . . 1 . . 9 Machine Destruction 79 | . . . . . . 17 . 27 . 4 . . . . . . 21 . . . 1 . . 9 Programmers 7 | . . . . . . 4 . . . . . . . . . . 3 . . . . . . . Fabnet Peak Effective % . | . . . . . . . . . . . . . . . . . . . . . . . . . Robots Rewired 37 | . . . . . . 9 . 6 . . . . . . . . 4 1 11 . . . . 6 Allies Hacked 2 | . . . . . . . . 1 . . . . . . . . 1 . . . . . . . Hacks Repelled 2 | . . . . . . . . . . . . . . . . . . . . . 2 . . . Allies | -11 -10 -10 -10 -9 -8 -8 -8 -8 -8 -8 -7 -7 -7 -7 -6 -6 -6 -5 -5 -5 -4 -4 -4 -4 -------- Run | Yrd Mat Min Exi Min Mat Gar Mat Gar Mat Gar Fac Low Low Zio Pro Fac Gar Fac Ext Cet Fac Was Fac Gar Total Allies 66 | . . 1 . . . 10 . 6 . . 2 . . 3 . 9 4 3 20 . 2 . . 6 Largest Group 9 | . . 1 . . . 9 4 5 . . 2 . . 3 3 9 9 4 7 . 2 . . 4 Highest-Rated Group 446 | . . 31 . . . 102 77 80 . . 48 . . 87 87 446 446 160 260 . 128 . . 194 Highest-Rated Ally 159 | . . 31 . . . 31 24 16 . . 24 . . 31 31 64 64 64 159 . 64 . . 56 Warlord Squad Rendezvous 14 | . . . . . . . . . . . . . . . . . . 6 . . 5 . 3 . Dakka 2 | . . . . . . . . . . . . . . . . . . 1 . . 1 . . . Infantry 1 | . . . . . . . . . . . . . . . . . . 1 . . . . . . Muscle 1 | . . . . . . . . . . . . . . . . . . . . . 1 . . . Geek 2 | . . . . . . . . . . . . . . . . . . 1 . . . . 1 . Ranger 1 | . . . . . . . . . . . . . . . . . . . . . 1 . . . Pyro 5 | . . . . . . . . . . . . . . . . . . 2 . . 1 . 2 . Chimera 2 | . . . . . . . . . . . . . . . . . . 1 . . 1 . . . Total Orders 22 | . . . . . . . . . . . . . . . . 6 9 . . . 2 . 5 . STAY 8 | . . . . . . . . . . . . . . . . 3 5 . . . . . . . FOLLOW 7 | . . . . . . . . . . . . . . . . 3 4 . . . . . . . EXPLORE 6 | . . . . . . . . . . . . . . . . . . . . . 2 . 4 . RETURN 1 | . . . . . . . . . . . . . . . . . . . . . . . 1 . Ally Attacks 506 | . . . . . . 43 55 25 . . 12 . . . 23 4 85 21 196 . 3 . . 39 Total Damage 13889 | . . . . . . 568 1050 330 . . 228 . . . 368 151 3021 1969 4533 . 155 . . 1516 Kills 97 | . . . . . . 5 10 5 . . 3 . . . 5 2 19 11 31 . . . . 6 Allies Corrupted 3 | . . . . . . . . . . . . . . . . . 1 . 1 . 1 . . . Allies Melted 3 | . . . . . . . . . . . . . . . . . . . 1 . 2 . . . Intel | -11 -10 -10 -10 -9 -8 -8 -8 -8 -8 -8 -7 -7 -7 -7 -6 -6 -6 -5 -5 -5 -4 -4 -4 -4 ------- Run | Yrd Mat Min Exi Min Mat Gar Mat Gar Mat Gar Fac Low Low Zio Pro Fac Gar Fac Ext Cet Fac Was Fac Gar Robot Analysis Total 14 | . 2 . . . 2 . 2 . 1 . 1 . . . . . . . . . 3 . 3 . Derelict Logs Recovered 7 | . . 1 . . . . . . . . . 1 1 2 2 . . . . . . . . . Drone Launches 28 | . . . . . . . . . . . . . . . . . . . . . 18 . 10 . Drone Recoveries 7 | . . . . . . . . . . . . . . . . . . . . . 3 . 4 . Exploration | -11 -10 -10 -10 -9 -8 -8 -8 -8 -8 -8 -7 -7 -7 -7 -6 -6 -6 -5 -5 -5 -4 -4 -4 -4 ------------- Run | Yrd Mat Min Exi Min Mat Gar Mat Gar Mat Gar Fac Low Low Zio Pro Fac Gar Fac Ext Cet Fac Was Fac Gar Turns Passed 17193 | 120 364 324 494 192 1027 1962 493 1875 91 822 641 300 192 693 411 721 1564 1634 824 54 837 148 686 724 Spaces Moved 23050 | 51 400 528 608 214 1026 1844 673 1544 215 1337 1139 749 466 1394 966 998 2053 2593 805 54 1406 283 1143 561 Core 88 | 4 . . . . . . . . . . . . . . . . . 2 . . . . . 82 Treads . | . . . . . . . . . . . . . . . . . . . . . . . . . Legs 274 | . . . . . . 202 . . . . . . . . . . . . . . . . . 72 Wheels 332 | 47 285 . . . . . . . . . . . . . . . . . . . . . . . Hover 3186 | . 115 528 608 214 1026 203 . . . . 7 . . . . . . 2 . . 475 . 8 . Flight 19170 | . . . . . . 1439 673 1544 215 1337 1132 749 466 1394 966 998 2053 2589 805 54 931 283 1135 407 Fastest Speed 24 | 50 56 56 60 60 44 27 29 29 29 29 32 29 32 32 27 27 25 24 29 45 27 40 24 29 Average Speed 38 | 82 73 57 79 60 56 49 29 29 29 36 35 34 32 40 32 44 32 28 31 45 37 40 28 44 Slowest Speed 360 | 100 125 60 180 60 112 190 114 32 29 360 120 195 32 128 45 113 115 150 45 45 117 40 111 355 Overloaded Moves . | . . . . . . . . . . . . . . . . . . . . . . . . . Propulsion Burnouts . | . . . . . . . . . . . . . . . . . . . . . . . . . Robots Hopped 105 | . . . . . . 2 6 . . 2 9 . 3 . 3 3 . 37 12 . 9 3 16 . Cave-ins Triggered . | . . . . . . . . . . . . . . . . . . . . . . . . . Exploration Rate (%) 58 | 3 66 96 90 33 60 96 51 87 17 45 36 87 66 85 93 17 96 47 79 23 39 79 32 45 Regions Visited 24 Branch Regions 9 Pre-discovered Areas 5 | . . . 1 1 . . . . . . . 1 . 2 . . . . . . . . . . Known Exits Taken 7 | . . . . . 1 . 1 . 1 . 1 . . . . 1 . 1 . . . . 1 . Unknown Exits Taken 11 | 1 1 1 1 1 . . . . . . . 1 1 1 1 . . . 1 1 . . . . Scrap Searched 16 | . . 1 . . . . . . . . . 3 6 4 2 . . . . . . . . . Spaces Dug 29 | . . . . . 6 . . 2 . . 2 . . . . . . . . . 1 . 2 16 Terrain Destroyed 1061 | . 56 22 . . 6 191 1 2 . 7 176 . 2 . . . 147 20 30 . 65 167 98 71 Melee 26 | . . . . . 6 . . 2 . . . . . . . . . . . . 1 . 2 15 Projectile 35 | . . . . . . 4 1 . . . 3 . . . . . 3 . 9 . 5 . 6 4 AOE 998 | . 56 22 . . . 186 . . . 7 173 . 2 . . . 144 19 21 . 59 167 90 52 Terrain Rammed . | . . . . . . . . . . . . . . . . . . . . . . . . . Walls Destroyed . | . . . . . . . . . . . . . . . . . . . . . . . . . Machines Disabled . | . . . . . . . . . . . . . . . . . . . . . . . . . Actions | -11 -10 -10 -10 -9 -8 -8 -8 -8 -8 -8 -7 -7 -7 -7 -6 -6 -6 -5 -5 -5 -4 -4 -4 -4 --------- Run | Yrd Mat Min Exi Min Mat Gar Mat Gar Mat Gar Fac Low Low Zio Pro Fac Gar Fac Ext Cet Fac Was Fac Gar Total 29590 | 89 446 545 622 270 1326 2677 881 2805 235 1661 1327 788 504 1520 1053 1254 2778 3310 1203 72 1612 298 1417 897 Wait 3959 | . 3 10 . 46 121 426 161 1067 8 163 102 17 34 101 61 213 366 514 203 7 51 1 156 128 Move 22831 | 50 399 527 607 213 1025 1838 661 1543 215 1332 1120 748 459 1393 959 991 2052 2522 784 53 1390 277 1113 560 Hop 91 | . . . . . . 1 6 . . 2 9 . 3 . 3 3 . 33 8 . 7 2 14 . Pick Up 160 | 4 7 1 5 1 14 9 . 2 1 21 5 3 2 2 . 5 21 24 5 . 11 1 10 6 Fast Attach 222 | 8 5 . 2 . 22 19 5 2 1 6 12 4 . 9 5 7 23 22 6 . 22 1 18 23 Attach 115 | . . 1 . . 5 5 . 1 . 7 10 4 1 . 1 6 18 13 8 1 13 2 13 6 Detach 114 | 1 . 1 1 . 10 4 . . . 7 11 4 1 1 1 5 12 13 4 . 16 1 13 8 Swap 181 | 5 3 . . . 10 14 3 5 1 . 10 1 . 1 3 8 32 38 22 . 16 . 7 2 Drop 269 | 2 10 1 7 1 20 31 4 6 3 26 11 3 2 9 7 5 28 33 14 . 18 . 14 14 Fire 791 | 19 19 4 . 7 38 121 41 85 2 15 37 4 2 . 1 . 88 81 92 11 47 13 33 31 Melee 251 | . . . . . 61 . . 37 4 5 . . . 4 6 11 66 . . . 8 . 6 43 Ram 2 | . . . . 2 . . . . . . . . . . . . . . . . . . . . Kick . | . . . . . . . . . . . . . . . . . . . . . . . . . Crush . | . . . . . . . . . . . . . . . . . . . . . . . . . Escape Stasis 428 | . . . . . . 166 . 28 . 68 . . . . . . 54 13 18 . 9 . 18 54 Rewire 155 | . . . . . . 43 . 29 . . . . . . . . 18 4 39 . . . . 22 Trap 15 | . . . . . . . . . . 9 . . . . 6 . . . . . . . . . Miscellaneous 6 | . . . . . . . . . . . . . . . . . . . . . 4 . 2 . Route ------- -11/Scrapyard -10/Materials (discovered 3 exits: [*Mat x2] / [*Min]) -10/Mines (discovered 3 exits: [*Mat x2] / *Exi) -10/Exiles -9/Mines -8/Materials (discovered 3 exits: *Fac x2 / Gar) -8/Garrison (discovered 3 exits: *Mat x3) -8/Materials (discovered 3 exits: *Fac x2 / Gar) -8/Garrison (discovered 3 exits: *Mat x3) -8/Materials -8/Garrison -7/Factory (discovered 4 exits: *Fac / Sto / *Low x2) -7/Lower Caves -7/Lower Caves (discovered 2 exits: *Fac / *Zio) -7/Zion -6/Proximity Caves -6/Factory (discovered 5 exits: Fac x4 / Gar) -6/Garrison (discovered 3 exits: *Fac x3) -5/Factory (discovered 5 exits: *Fac / *Upp x2 / *Ext x2) -5/Extension (discovered 3 exits: *Fac x2 / [*Cet]) -5/Cetus -4/Factory (discovered 7 exits: *Res x4 / *Upp x2 / Arm) -4/Waste -4/Factory (discovered 4 exits: *Res x2 / *Upp / Gar) -4/Garrison (discovered 3 exits: [*Fac x3]) History --------- Turn | Location | Event 3 | -11/Scrapyard | Discovered new exit (range 16) 121 | -11/Scrapyard | Entered Materials 171 | -10/Materials | Discovered new exit (range 15) 315 | -10/Materials | Build established: Mutant 345 | -10/Materials | Discovered new exit (range 8) 368 | -10/Materials | Discovered new exit (range 13) 485 | -10/Materials | Entered Mines 492 | -10/Mines | Discovered new exit (range 10) 520 | -10/Mines | Learned location of 1 exit from Materials 538 | -10/Mines | Discovered new exit (range 5) 540 | -10/Mines | Received a Mining Laser from a helpful Derelict 572 | -10/Mines | Deemed a non-threat by the Exiles lab entrance 572 | -10/Mines | Discovered new exit (range 5) 737 | -10/Mines | Received a Rocket Launcher from a helpful Derelict 809 | -10/Mines | Entered Exiles 825 | -10/Exiles | Met 8R-AWN 834 | -10/Exiles | Met EX-HEX 851 | -10/Exiles | Met EX-BIN 860 | -10/Exiles | Aligned with FarCom system 861 | -10/Exiles | Given EX-Vault access code 885 | -10/Exiles | Opened EX-Vault 888 | -10/Exiles | Found Deploy-a-Sentry 890 | -10/Exiles | Found Deploy-a-Sentry 892 | -10/Exiles | Found Deploy-a-Sentry 897 | -10/Exiles | Found Latent Energy Streamer 936 | -10/Exiles | Warned to stay clear of 0b10 Research branches 988 | -10/Exiles | Met EX-DEC 1004 | -10/Exiles | Learned location of Zion (-7) 1058 | -10/Exiles | Discovered new exit (range 12) 1182 | -10/Exiles | Visited The Gauntlet 1303 | -10/Exiles | Left Exiles lab with Latent Energy Streamer 1303 | -10/Exiles | Entered Mines 1306 | -9/Mines | Discovered new exit (range 12) 1322 | -9/Mines | A weapon hastily lodged in a ceiling crevice suddenly fell to the ground 1323 | -9/Mines | Assembled infested the area 1377 | -9/Mines | Met a Derelict bent on vengeance 1466 | -9/Mines | Learned location of Storage (-7) 1495 | -9/Mines | Entered Materials 1495 | -8/Materials | Evolved 4 slots: Propulsion x3, Utility x1 1496 | -8/Materials | Identified exit to Factory 1788 | -8/Materials | Central database locked down 2038 | -8/Materials | Repaired Reactive Plating 2081 | -8/Materials | Repaired Airjet? 2143 | -8/Materials | Repaired Hover Unit 2224 | -8/Materials | Discovered exit to Factory (range 4) 2442 | -8/Materials | Identified exit to Garrison 2482 | -8/Materials | Repaired Broken Imp. Hover Unit? 2522 | -8/Materials | Entered Garrison 2536 | -8/Garrison | Triggered checkpoint 2600 | -8/Garrison | Garrison Relay disabled 2641 | -8/Garrison | Build established: Scavenger-Mutant 2645 | -8/Garrison | Learned Materials security intel 2689 | -8/Garrison | Rescued a captive Derelict 2885 | -8/Garrison | Phase Generator disabled 2924 | -8/Garrison | Triggered checkpoint 3197 | -8/Garrison | Triggered checkpoint 3242 | -8/Garrison | Spotted B-75 Beast 3245 | -8/Garrison | Garrison Relay disabled 3322 | -8/Garrison | Discovered new exit (range 9) 3368 | -8/Garrison | Triggered checkpoint 3409 | -8/Garrison | Discovered new exit (range 8) 3416 | -8/Garrison | Garrison Relay disabled 3568 | -8/Garrison | Discovered new exit (range 3) 3696 | -8/Garrison | Build established: Hacker-Sprinter 3966 | -8/Garrison | Garrison Relay disabled 3972 | -8/Garrison | Triggered checkpoint 3994 | -8/Garrison | Triggered checkpoint 4064 | -8/Garrison | Triggered checkpoint 4110 | -8/Garrison | Triggered checkpoint 4270 | -8/Garrison | Attempted to access garrison exit controls, blocked by remote lockdown 4306 | -8/Garrison | Lost 5 allies 4396 | -8/Garrison | Attempted to access garrison exit controls, blocked by remote lockdown 4484 | -8/Garrison | Entered Materials 4484 | -8/Materials | Accompanied by 4 allies 4544 | -8/Materials | Repaired Nuclear Pulse Array 4626 | -8/Materials | Central database locked down 4723 | -8/Materials | Garrison activated, responded to threat 4804 | -8/Materials | Discovered exit to Factory (range 16) 4859 | -8/Materials | Repaired Gauss Rifle 4884 | -8/Materials | First assault squad dispatched 4956 | -8/Materials | Lost 3 allies 4962 | -8/Materials | Discovered exit to Factory (range 16) 4977 | -8/Materials | Identified exit to Garrison 4977 | -8/Materials | Entered Garrison 5006 | -8/Garrison | Triggered checkpoint 5056 | -8/Garrison | Garrison Relay disabled 5062 | -8/Garrison | Triggered checkpoint 5085 | -8/Garrison | Core integrity fell below 50% 5115 | -8/Garrison | Garrison Relay disabled 5186 | -8/Garrison | Triggered checkpoint 5233 | -8/Garrison | Discovered new exit (range 34) 5233 | -8/Garrison | Discovered new exit (range 56) 5233 | -8/Garrison | Discovered new exit (range 76) 5305 | -8/Garrison | Garrison Relay disabled 5342 | -8/Garrison | Garrison Relay disabled 5442 | -8/Garrison | Triggered checkpoint 5484 | -8/Garrison | Lost 4 allies 5521 | -8/Garrison | Garrison Relay disabled 5570 | -8/Garrison | Garrison Relay disabled 5596 | -8/Garrison | Triggered checkpoint 6804 | -8/Garrison | Triggered checkpoint 6852 | -8/Garrison | Entered Materials 6943 | -8/Materials | Identified exit to Garrison 6943 | -8/Materials | Entered Garrison 6996 | -8/Garrison | Garrison Relay disabled 7166 | -8/Garrison | Triggered checkpoint 7174 | -8/Garrison | Triggered checkpoint 7226 | -8/Garrison | Discovered exit to Factory (range 10) 7290 | -8/Garrison | Triggered checkpoint 7545 | -8/Garrison | System corruption reached 10% 7580 | -8/Garrison | Triggered checkpoint 7666 | -8/Garrison | Triggered checkpoint 7667 | -8/Garrison | Destroyed 7 combat bots 7715 | -8/Garrison | Core integrity fell below 20% 7765 | -8/Garrison | Entered Factory 7765 | -7/Factory | Evolved 2 slots: Power x1, Utility x1 7767 | -7/Factory | Build established: Hacker-Mutant 7833 | -7/Factory | Identified exit to Storage 7833 | -7/Factory | Identified exit to Lower Caves 7873 | -7/Factory | Fabricated X-57 Shotgunner? 7908 | -7/Factory | System corruption reached 10% 7987 | -7/Factory | Garrison activated, responded to threat 8165 | -7/Factory | First assault squad dispatched 8189 | -7/Factory | Build established: Hacker-Sprinter 8332 | -7/Factory | Discovered new exit (range 12) 8385 | -7/Factory | Lost 3 parts (1p2n) 8406 | -7/Factory | Entered Lower Caves 8412 | -7/Lower Caves | Met a Warlord Commander 8413 | -7/Lower Caves | Learned location of Warlord (-4) 8414 | -7/Lower Caves | Warlord Commander delivered Encrypted Comm Array 8421 | -7/Lower Caves | Found Encrypted Comm Array 8499 | -7/Lower Caves | Build established: Hacker-Mutant 8533 | -7/Lower Caves | Encountered a Warlord checkpoint 8594 | -7/Lower Caves | Lost 3 allies 8614 | -7/Lower Caves | Discovered new exit (range 9) 8647 | -7/Lower Caves | Learned Factory emergency access door positions 8706 | -7/Lower Caves | Entered another Lower Caves area 8725 | -7/Lower Caves | Found Alien Artifact 8733 | -7/Lower Caves | Discovered new exit (range 3) 8775 | -7/Lower Caves | Learned location of 1 exit from Factory 8862 | -7/Lower Caves | Build established: Hacker-Sprinter 8894 | -7/Lower Caves | Discovered new exit (range 12) 8898 | -7/Lower Caves | Entered Zion 8918 | -7/Zion | System corruption cleaned by Quarantine Array 8939 | -7/Zion | Discovered new exit (range 9) 9005 | -7/Zion | Learned location of Data Miner (-6) 9006 | -7/Zion | Learned Factory interactive machine intel 9043 | -7/Zion | Received a visual enhancement algorithm 9071 | -7/Zion | Gained Derelict followers 9176 | -7/Zion | Learned Factory terminal intel 9189 | -7/Zion | Rebuked by Imprinter 9543 | -7/Zion | Found Prototype Device 9543 | -7/Zion | Identified Mobile Refinery Mk. CCLXVII 9586 | -7/Zion | Build established: Derelict-Mutant 9591 | -7/Zion | Entered Proximity Caves 9591 | -6/Proximity Caves | Accompanied by 3 allies 9735 | -6/Proximity Caves | Learned Factory stockpile data 9858 | -6/Proximity Caves | Attracted the attention of an 0b10 checkpoint 9926 | -6/Proximity Caves | Learned 4 Factory zone layouts 9958 | -6/Proximity Caves | Spotted B-75 Beast 9971 | -6/Proximity Caves | Discovered new exit (range 10) 10002 | -6/Proximity Caves | Entered Factory 10002 | -6/Factory | Evolved 2 slots: Propulsion x1, Utility x1 10003 | -6/Factory | Identified exit to Factory 10007 | -6/Factory | Loaded intel: 52 interactive machine locations 10008 | -6/Factory | Loaded intel: 26 terminal locations 10032 | -6/Factory | Identified Dimensional Node Initializer 10124 | -6/Factory | Repaired Broken Imp. Cooling System 10148 | -6/Factory | Fabricated O-24 Administrator (x1) 10252 | -6/Factory | Fabricated Y-72 Warden (x2) 10356 | -6/Factory | Fabricated Y-72 Warden? 10426 | -6/Factory | Fabricated Mak. Flight Unit? 10440 | -6/Factory | Build established: Hacker-Mutant 10506 | -6/Factory | Fabricated O-24 Administrator (x1) 10546 | -6/Factory | Fabricated T-07 Excavator? 10612 | -6/Factory | Repaired Broken VTOL Module 10678 | -6/Factory | Fabricated Y-72 Warden (x2) 10690 | -6/Factory | Identified exit to Garrison 10723 | -6/Factory | Entered Garrison 10723 | -6/Garrison | Accompanied by 9 allies 10830 | -6/Garrison | Triggered checkpoint 10830 | -6/Garrison | Garrison Relay disabled 10876 | -6/Garrison | Triggered checkpoint 10900 | -6/Garrison | Triggered checkpoint 10982 | -6/Garrison | Lost 4 parts (4n) 11016 | -6/Garrison | Spotted B-86 Titan 11095 | -6/Garrison | Spotted B-86 Titan 11101 | -6/Garrison | Allies destroyed B-86 Titan 11152 | -6/Garrison | Allies destroyed B-86 Titan 11175 | -6/Garrison | Garrison Relay disabled 11182 | -6/Garrison | Lost 5 parts (1p2n2u) 11188 | -6/Garrison | Phase Generator disabled 11280 | -6/Garrison | Discovered exit to Factory (range 13) 11282 | -6/Garrison | Garrison Relay disabled 11289 | -6/Garrison | Build established: Scavenger-Sprinter 11395 | -6/Garrison | Triggered checkpoint 11406 | -6/Garrison | Garrison Relay disabled 11414 | -6/Garrison | Spotted B-75 Beast 11463 | -6/Garrison | System corruption reached 10% 11467 | -6/Garrison | P-70 Sage assimilated allied Administrator 5b 11510 | -6/Garrison | Lost 3 parts (2n1u) 11615 | -6/Garrison | Lost 3 parts (1p1n1u) 11681 | -6/Garrison | Discovered exit to Factory (range 5) 11686 | -6/Garrison | Triggered checkpoint 11691 | -6/Garrison | Garrison Relay disabled 11759 | -6/Garrison | Discovered exit to Factory (range 11) 11764 | -6/Garrison | Discovered exit to Factory (range 81) 11764 | -6/Garrison | Discovered exit to Factory (range 60) 11764 | -6/Garrison | Discovered exit to Factory (range 16) 12161 | -6/Garrison | Lost 3 parts (2n1w) 12287 | -6/Garrison | Entered Factory 12287 | -5/Factory | Accompanied by 4 allies 12287 | -5/Factory | Evolved 2 slots: Utility x2 12401 | -5/Factory | Repaired Impulse Thruster Array 12458 | -5/Factory | Repaired Adv. Cooling System 12498 | -5/Factory | Repaired Imp. Light Armor Plating 12551 | -5/Factory | Repaired Lgt. Angular Momentum Engine 12587 | -5/Factory | First assault squad dispatched 12683 | -5/Factory | Joined by Warlord Infantry squad 12685 | -5/Factory | Lost 4 allies 12894 | -5/Factory | Build established: Scavenger-Scout 13031 | -5/Factory | Discovered new exit (range 14) 13087 | -5/Factory | Joined by Warlord Pyro squad 13122 | -5/Factory | Garrison activated, responded to threat 13147 | -5/Factory | Fabricated Y-72 Warden? 13147 | -5/Factory | Garrison activated, responded to threat 13156 | -5/Factory | Joined by Warlord Pyro squad 13163 | -5/Factory | Lost 3 allies 13218 | -5/Factory | Discovered new exit (range 6) 13220 | -5/Factory | Joined by Warlord Dakka squad 13264 | -5/Factory | Lost 7 allies 13335 | -5/Factory | Joined by Warlord Geek squad 13393 | -5/Factory | Repaired Broken Impulse Thruster Array? 13460 | -5/Factory | Repaired Nuclear Pulse Array? 13785 | -5/Factory | Joined by Warlord Chimera squad 13840 | -5/Factory | Identified exit to Upper Caves 13840 | -5/Factory | Identified exit to Extension 13842 | -5/Factory | Spotted B-75 Beast 13921 | -5/Factory | Entered Extension 13949 | -5/Extension | Rescued a captive Derelict 13961 | -5/Extension | Rescued a captive Derelict 14005 | -5/Extension | Rescued a captive Derelict 14008 | -5/Extension | Rescued a captive Derelict 14012 | -5/Extension | Rescued a captive Derelict 14074 | -5/Extension | Lost 4 allies 14081 | -5/Extension | Rescued a captive Derelict 14137 | -5/Extension | Lost 3 allies 14221 | -5/Extension | First assault squad dispatched 14447 | -5/Extension | Spotted B-75 Beast 14469 | -5/Extension | Allies destroyed B-75 Beast 14473 | -5/Extension | Core integrity fell below 50% 14473 | -5/Extension | Spotted B-75 Beast 14502 | -5/Extension | Lost 4 allies 14514 | -5/Extension | Allies destroyed B-75 Beast 14526 | -5/Extension | High security lockdown imminent 14537 | -5/Extension | Lost 4 parts (1p2n1u) 14537 | -5/Extension | Discovered new exit (range 4) 14554 | -5/Extension | Rescued a captive Derelict 14588 | -5/Extension | Energy Cycler disabled 14590 | -5/Extension | Rescued a captive Derelict 14594 | -5/Extension | Rescued a captive Derelict 14594 | -5/Extension | Rescued a captive Derelict 14595 | -5/Extension | Rescued A7 14606 | -5/Extension | High security lockdown engaged 14727 | -5/Extension | Lost 5 parts (2p2n1u) 14735 | -5/Extension | Discovered new exit (range 13) 14737 | -5/Extension | Core integrity fell below 20% 14739 | -5/Extension | Discovered new exit (range 8) 14739 | -5/Extension | Extracted ID and sensor layout for unrecognized location from A7's data core 14745 | -5/Extension | Entered Cetus 14753 | -5/Cetus | Spotted Cetus Guard 14753 | -5/Cetus | Spotted Cetus Guard 14753 | -5/Cetus | Spotted Cetus Guard 14768 | -5/Cetus | Discovered new exit (range 16) 14776 | -5/Cetus | Lost 3 parts (1u2w) 14783 | -5/Cetus | Build established: Hacker-Mutant 14799 | -5/Cetus | Entered Factory 14799 | -4/Factory | Evolved 2 slots: Utility x2 14820 | -4/Factory | Joined by Warlord Ranger squad 14820 | -4/Factory | Discovered new exit (range 4) 14906 | -4/Factory | Discovered new exit (range 50) 14909 | -4/Factory | Fabricated Hyb. Antimatter Reactor (x2) 14937 | -4/Factory | Identified exit to Upper Caves 14937 | -4/Factory | Identified exit to Armory 15142 | -4/Factory | Joined by Warlord Chimera squad 15242 | -4/Factory | Joined by Warlord Muscle squad 15281 | -4/Factory | Joined by Warlord Pyro squad 15291 | -4/Factory | P-70 Sage assimilated allied VO-E02(i) 15299 | -4/Factory | First assault squad dispatched 15335 | -4/Factory | Fabricated Y-72 Warden? 15339 | -4/Factory | Lost 5 allies 15362 | -4/Factory | Discovered new exit (range 10) 15410 | -4/Factory | Identified exit to Research 15431 | -4/Factory | Joined by Warlord Dakka squad 15482 | -4/Factory | Garrison activated, responded to threat 15492 | -4/Factory | Lost 3 allies 15537 | -4/Factory | Lost 4 parts (4n) 15636 | -4/Factory | Sucked down chute 15636 | -4/Factory | Entered Waste 15644 | -4/Waste | Spotted C-40 Crusher 15644 | -4/Waste | Spotted C-40 Crusher 15646 | -4/Waste | Spotted C-40 Crusher 15647 | -4/Waste | Spotted C-40 Crusher 15651 | -4/Waste | Crushed by Compactor (1 part destroyed) 15653 | -4/Waste | Spotted C-40 Crusher 15659 | -4/Waste | Spotted C-40 Crusher 15669 | -4/Waste | Destroyed C-40 Crusher 15678 | -4/Waste | Discovered new exit (range 11) 15688 | -4/Waste | Destroyed C-40 Crusher 15695 | -4/Waste | Destroyed C-40 Crusher 15695 | -4/Waste | Destroyed C-40 Crusher 15695 | -4/Waste | Destroyed C-40 Crusher 15759 | -4/Waste | Destroyed C-40 Crusher 15784 | -4/Waste | Entered Factory 15819 | -4/Factory | Joined by Warlord Pyro squad 15845 | -4/Factory | Joined by Warlord Pyro squad 15848 | -4/Factory | Repaired Broken Linear Accelerator? 15881 | -4/Factory | Discovered exit to Upper Caves (range 15) 15903 | -4/Factory | Repaired Broken Railgun? 15951 | -4/Factory | Repaired Adv. Phase Shifter? 16071 | -4/Factory | Discovered exit to Research (range 45) 16111 | -4/Factory | Build established: Hacker-Sprinter 16119 | -4/Factory | Discovered exit to Research (range 16) 16139 | -4/Factory | Garrison activated, responded to threat 16146 | -4/Factory | Found Prototype Processor 16146 | -4/Factory | Identified Exp. Terrain Scan Processor 16262 | -4/Factory | Repaired Field Propulsion Array 16352 | -4/Factory | Garrison activated, responded to threat 16358 | -4/Factory | Central database locked down 16398 | -4/Factory | Joined by Warlord Geek squad 16446 | -4/Factory | Lost 5 parts (3n1u1w) 16470 | -4/Factory | Identified exit to Garrison 16470 | -4/Factory | Entered Garrison 16686 | -4/Garrison | Build established: Wizard-Sprinter 16769 | -4/Garrison | Triggered checkpoint 16782 | -4/Garrison | Core integrity fell below 50% 16815 | -4/Garrison | Garrison Relay disabled 16828 | -4/Garrison | Lost 3 parts (1p2n) 16830 | -4/Garrison | Discovered new exit (range 62) 16830 | -4/Garrison | Discovered new exit (range 60) 16830 | -4/Garrison | Discovered new exit (range 23) 16830 | -4/Garrison | Learned Factory security intel 16896 | -4/Garrison | Phase Generator disabled 16956 | -4/Garrison | Lost 5 parts (3n1u1w) 17032 | -4/Garrison | Triggered checkpoint 17072 | -4/Garrison | Attempted to access garrison exit controls, blocked by remote lockdown 17081 | -4/Garrison | Lost 4 allies 17159 | -4/Garrison | Core integrity fell below 20% 17194 | -4/Garrison | Destroyed by H-77 Assassin with Coil Gun Last Messages --------------- 17178_ H-77 Assassin destroyed. 17179_ Acquired 49 matter. 17181_ Acquired Coil Gun. 17183_ Slug penetrates Wall. 17183_ Slug penetrates H-77 Assassin. 17183_ Penetrated by Slug. 17183_ Critical hit (Destroy). 17183_ Myomer Leg destroyed. 17185_ Penetrated by Slug. 17185_ Slug penetrates A-27 Freighter. 17186_ Slug penetrates H-77 Assassin. 17186_ Penetrated by Slug. 17189_ Slug penetrates Wall. 17189_ Slug penetrates H-77 Assassin. 17189_ H-77 Assassin suffers critical hit (Destroy). 17189_ Destroyed Lgt. Antimatter Reactor. 17192_ Slug penetrates H-77 Assassin. 17192_ H-77 Assassin destroyed. 17192_ Switching to secondary target: H-77 Assassin. 17194_ Penetrated by Slug. Map ----- +----------------------------------------------------+ | ???????????# " " ###"####???????????? | | ###????????# " " # #??????????????? | | ""#????????### ## ## ##### #??????????????? | | ############# ## ## #####"#######????????? | | ########## | | # | | ###"""######## ##### #### ###### ## | | ??# #??????## ##""""### ##???# #??# #???#! !# | | ??#####???????#^^## g g#?# #????# #??# #???#! !# | | ??????????????#^^#######?# #????# #??# #???# # | | ??????????????# #???# ### ###### #??# #???#! ]# | | ??????????????# #???# #??# #???#!^^]# | | ??????????????# #???##### ###### #### ###### ## | | ??????????????# #???????# #????#" #? | | ############### #???????# #????#%#### ########## | | #???????# #??###"#??# ######### | | #???????#=#### # #### | | ##################???????#*! [## | | ??????????????# #??????##%#####"%## | | ??????????????# #??????#[!#???##*##### ######### | | ??????????????# #??????#%=#????# ###?# #???????## | | ??????????????# #??????#=!#????#%!%### #????????# | | ??????????????# #??????#![#????#![/! !*#??????### | | ??????????????# #??????#!h#????#%![#####????### # | | ??????????????# #?????##%%##???#*###????????# | | ??????????????# #?????#A@=A#???#[#????????### ## | | ??????????????# #?????#A/[A#???# #????????# | | ??????????????# #?????##AA##???# #???????## | | ??????????????# #??????####??### #???##### | | ??????????????# #????????????#"#!#???#! ## | | ??????????????# #????????????#"!!#####! ## | | ??????????????# #????????????#"![%![%=*[ | | ??????????????# #????????????# !!#####! # | | ??????????????# #????????????# # #???#!= ## | | ??????????????# #????????????###!#???###### | | ??????????????# #??????????????# #????????## | | ############### #??????????##### ######????## # | | #??????????# #?????## | | #??????????# #?????## ## | | ##################??????????# #?????# # | | ????????????????????????????# ! #?????#" "# | | ????????????????????????????# #?????#" "# | | ????????????????????????????# !#?????#" "# | | ????????????????????????????# #?????#"""# | | ????????????????????????????# !#?????##### | | ????????????????????????????# #?????????? | | ????????????????????????????# #?????????? | | ????????????????????????????############?????????? | | ?????????????????????????????????????????????????? | | ?????????????????????????????????????????????????? | +----------------------------------------------------+ Best States ------------- Heat Dissipation 71 Energy Generation 39 Energy Capacity 2100 Matter Stores 300 Matter Capacity 300 Sight Range 22 Terrain Scan Range 16 Terrain Scan Density 160 Power Amplification 60 Additional Mass Support 12 Armor Coverage 300 Resistance: KI 25 Resistance: TH 20 Resistance: EM 25 Core Shielding 20 Propulsion Shielding 66 Weapon Shielding 66 Phase Shifting 15 Evasion (%) 80 Targeting Accuracy 5 Target Analysis 11 Core Analysis 6 Armor Integrity Analysis 40 Offensive Hacking 48 Defensive Hacking 25 Authchip Count 9 Item Schematics ----------------- Imp. Hover Unit | -8/Materials | Scanalyzed Hvy. Riot Gun | -7/Zion | Free Flamer | -7/Zion | Free Enh. Flamer | -7/Zion | Free Ripper | -7/Zion | Free Arc Projector | -7/Zion | Archive Magnetic Acceleration Cannon | -7/Zion | Archive Arc Thrower | -7/Zion | Archive Energy Filter | -7/Zion | Archive Lgt. Fission Core | -7/Zion | Archive Matter Filter | -7/Zion | Archive Disruptor Cannon | -7/Zion | Archive Mapping Drone Bay | -7/Zion | Archive Imp. Melee Analysis Suite | -7/Zion | Archive Proton Cannon | -7/Zion | Archive Imp. Medium Armor Plating | -7/Zion | Archive Thermic Laser | -7/Zion | Archive Coil Gun | -7/Zion | Archive Imp. Salvage Targeting Computer | -7/Zion | Archive Mak. Flight Unit | -6/Factory | Scanalyzed Imp. Cooling System | -6/Factory | Scanalyzed Imp. Propulsion Shielding | -6/Factory | Scanalyzed Minigun | -6/Factory | Scanalyzed Impulse Thruster Array | -5/Factory | Scanalyzed Hyp. Mass Driver | -4/Factory | Scanalyzed Diametric Drive | -4/Factory | Scanalyzed Lrn. Missile Launcher | -4/Factory | Scanalyzed Adv. Cooling System | -4/Factory | Scanalyzed Adv. Phase Shifter | -4/Factory | Scanalyzed Robot Schematics ------------------ T-07 Excavator | -7/Zion | Archive L-41 Fighter | -7/Zion | Archive Y-72 Warden | -7/Zion | Archive O-24 Administrator | -6/Factory | Hacked A-02 Transporter | -4/Factory | Hacked Fabricated ------------ X-57 Shotgunner | x2 | -7/Factory | Preloaded, Authchip O-24 Administrator | x1 | -6/Factory | Authchip Y-72 Warden | x2 | -6/Factory | Authchip Y-72 Warden | x2 | -6/Factory | Authchip Mak. Flight Unit | x2 | -6/Factory | Authchip O-24 Administrator | x1 | -6/Factory | Authchip T-07 Excavator | x1 | -6/Factory Y-72 Warden | x2 | -6/Factory Y-72 Warden | x2 | -5/Factory Hyb. Antimatter Reactor | x2 | -4/Factory | Preloaded Y-72 Warden | x2 | -4/Factory Alien Tech Used ----------------- None Achievements -------------- None Challenges ------------ None Game ------ Seed DeliveryMicrowarpHammer Manual? 0 Play Time 06:13:36 Cumulative 262.0 hours Start 2024.04.21 @ 15:03:18 End 2024.04.22 @ 21:40:08 Sessions 3 Manual Loads 0 Difficulty Rogue Special Mode None Game No. 107 Rogue 107 Adventurer 0 Explorer 0 Win Type - Total 1 Types 0/0/1/0/0/0/0/0/0 Lore% 65 Gallery% 71 Achievement% 58 Wizard Run 0 Options --------- Layout 0 ASCII 0 Keyboard 1 Movement Arrows Keybinds 0 Fullscreen 1 Font 12/Proggy Map View 83x54 Zoom Use 0% Tactical HUD 1 Map Filters NONE Filters NONE Steam 0 RUN: f58771d0-9c7d-4eab-b1fb-d19dd433e285